bitfinex-derivatives/quotes_ETHF0:USTF0_20250927
["timestamp","ask_amount","ask_price","bid_price","bid_amount"]
[1758969344092,0.9043,4006.0,4005.9,3.2078]
[1758969344485,0.9043,4006.0,4005.9,4.62408052]
[1758969344793,0.9043,4006.0,4005.9,3.4668]
[1758969345586,0.9043,4006.0,4005.9,3.4678]
[1758969346484,5.9043,4006.0,4005.9,3.2078]
[1758969346685,1.35341,4005.5,4005.4,3.21006539]
[1758969346884,1.35341,4005.5,4005.4,3.46906539]
[1758969347287,1.35341,4005.5,4005.4,3.21006539]
[1758969347593,6.35341,4005.5,4005.4,3.46906539]
[1758969348989,6.35341,4005.5,4005.4,3.21006539]
[1758969349188,6.35341,4005.5,4005.4,3.46906539]
[1758969350190,6.35341,4005.5,4005.0,0.1997]
[1758969350191,1.21826,4005.1,4005.0,0.1997]
[1758969350491,0.44918,4004.9,4004.8,3.2078]
[1758969350693,1.21828,4004.9,4004.8,3.4668]
[1758969351089,1.21828,4004.9,4004.8,3.46895877]
[1758969351289,1.21828,4004.9,4004.8,3.20995877]
[1758969351595,1.21828,4004.9,4004.8,3.46895877]
[1758969352296,0.547,4004.9,4004.8,3.46895877]
[1758969355208,0.7691,4004.9,4004.8,3.20995877]
[1758969355499,0.7691,4004.9,4004.8,3.46895877]
[1758969356093,0.3351,4004.9,4004.8,7.50018087]
[1758969358097,0.7614,4004.9,4004.8,3.20995877]
[1758969358398,0.7614,4004.9,4004.8,3.46895877]
[1758969358599,0.7614,4004.9,4004.8,3.20995877]
[1758969358905,0.7614,4004.9,4004.8,3.46895877]
[1758969359294,1.21058,4004.9,4004.8,3.91814877]
[1758969359494,1.21058,4004.9,4004.8,3.20995877]
[1758969359690,1.21058,4004.9,4004.8,3.46895877]
[1758969360905,1.21058,4004.9,4004.8,3.20995877]
[1758969361103,1.21058,4004.9,4004.8,3.46895877]
[1758969363001,0.4521,4005.5,4004.9,0.44918]
[1758969363205,0.1352,4006.5,4005.6,1.12275]
[1758969363403,0.1336,4006.0,4005.9,0.44907]
[1758969363597,0.1336,4006.0,4005.9,4.7402921]
[1758969363800,0.1336,4006.0,4005.9,8.61200541]
[1758969364002,0.1336,4007.0,4006.9,0.44895]
[1758969364305,3.65637,4010.4,4009.2,0.44869]
[1758969364495,3.33561975,4011.4,4007.7,11.22155]
[1758969364496,1.7745801,4011.4,4009.9,4.0312221]
[1758969364700,3.2078,4013.7,4010.7,3.2078]
[1758969364897,4.1648221,4012.0,4011.9,3.2078]
[1758969365097,0.4505,4012.0,4011.9,0.38963001]
[1758969365303,0.00300173,4012.0,4011.9,0.3918689]
[1758969365505,0.00300173,4012.0,4011.9,0.6578689]
[1758969365809,0.1336,4012.5,4011.9,0.6588689]
[1758969366013,0.4483,4012.8,4012.3,3.2078]
[1758969366199,0.44833,4012.6,4012.4,0.65663001]
[1758969366401,0.44831,4012.7,4012.5,0.38963001]
[1758969366604,0.58188,4013.0,4012.6,0.65763001]
[1758969366899,0.00301974,4013.0,4012.7,0.38963001]
[1758969367103,0.1336,4016.5,4013.8,11.20455]
[1758969367299,0.4505,4016.5,4016.0,3.2078]
[1758969367499,3.2078,4016.8,4016.0,4.33233001]
[1758969367709,3.2078,4017.3,4016.0,4.33433001]
[1758969367898,3.2078,4017.3,4016.7,3.2078]
[1758969367899,2.01,4017.3,4016.7,3.2078]
[1758969368098,2.01,4017.3,4016.8,0.66163001]
[1758969368099,0.3272,4017.2,4016.8,0.66163001]
[1758969368314,0.77505,4016.8,4016.7,0.00208035]
[1758969368506,3.98285,4016.8,4016.7,5.89e-06]
[1758969368803,3.98285,4016.8,4014.5,0.1267]
[1758969368804,0.3272,4015.2,4014.9,3.2078]
[1758969369012,0.3272,4015.1,4015.0,0.146]
[1758969369217,0.3272,4016.6,4015.1,0.3226]
[1758969369400,3.535,4016.3,4015.2,0.195]
[1758969369604,3.2078,4015.8,4015.2,0.00211603]
[1758969369802,0.3272,4015.4,4015.2,0.00211603]
[1758969370005,0.44795,4015.9,4015.2,0.00211603]
[1758969370316,0.4479,4016.4,4015.8,0.3226]
[1758969370512,10.03,4016.4,4015.9,0.277]
[1758969370718,10.03,4016.4,4016.3,0.3226]
[1758969370922,10.03,4016.4,4016.3,0.5996]
[1758969371212,3.2078,4017.1,4016.3,0.5996]
[1758969371213,0.44783,4017.0,4016.3,0.5996]
[1758969371509,0.44783,4017.0,4015.5,3.2078]
[1758969371510,0.3272,4015.8,4015.5,3.2078]
[1758969371712,0.3272,4015.6,4015.2,0.00211603]
[1758969371913,0.3272,4015.6,4015.5,3.2078]
[1758969372110,0.44799,4015.5,4015.2,0.00211603]
[1758969372418,0.44806,4014.9,4014.4,3.2078]
[1758969372608,0.44808,4014.7,4014.4,3.2078]
[1758969373004,0.44808,4014.7,4014.5,0.277]
[1758969373205,0.3272,4014.8,4014.5,0.277]
[1758969373206,0.77527,4014.8,4014.5,0.5996]
[1758969373401,0.77527,4014.8,4014.5,0.60171949]
[1758969373813,0.44803,4015.2,4014.5,0.32471949]
[1758969374023,0.44802,4015.3,4014.6,0.277]
[1758969374412,0.3272,4015.4,4014.6,0.277]
[1758969374611,0.7752,4015.4,4014.6,0.277]
[1758969375511,0.44803,4015.3,4014.6,0.277]
[1758969376119,0.44803,4015.3,4015.0,3.2078]
[1758969376305,0.44803,4015.3,4015.1,0.277]
[1758969376508,0.77523,4015.3,4015.1,0.277]
[1758969376709,0.44804,4015.2,4015.0,3.2078]
[1758969376910,0.44804,4015.2,4015.1,0.277]
[1758969377507,0.44797,4015.7,4015.1,0.277]
[1758969377715,0.3272,4016.6,4015.5,3.3345]
[1758969378018,0.4479,4016.4,4015.7,0.3226]
[1758969378410,0.44792,4016.2,4015.7,0.3226]
[1758969378611,0.3272,4016.6,4015.7,0.3226]
[1758969378815,8.8672,4016.6,4015.7,0.3226]
[1758969379011,0.44796,4015.9,4015.8,0.277]
[1758969379625,0.77516,4015.9,4015.8,0.277]
[1758969379817,1.24834,4016.5,4015.8,0.277]
[1758969380035,0.44795,4016.0,4015.8,0.277]
[1758969380217,0.3272,4016.4,4015.8,0.277]
[1758969380416,0.3272,4016.4,4015.8,1.04755]
[1758969380618,3.2078,4016.7,4016.2,0.44791]
[1758969380817,0.77508,4016.6,4015.6,4.4792021]
[1758969381021,0.77508,4016.6,4015.8,0.3226]
[1758969381022,0.44792,4016.2,4015.8,0.3226]
[1758969381215,0.77518,4015.6,4015.5,3.2078]
[1758969382022,0.77518,4015.6,4015.5,3.4848]
[1758969382414,0.77518,4015.6,4015.5,2.9848]
[1758969382627,0.44804,4015.1,4015.0,3.5304]
[1758969382818,0.3235,4015.4,4015.0,3.4838]
[1758969383012,0.3235,4015.4,4015.1,0.3364]
[1758969383218,0.448,4015.5,4015.1,0.3364]
[1758969383620,0.448,4015.5,4015.0,3.4838]
[1758969383923,0.448,4015.5,4015.1,0.78443]
[1758969384127,0.44798,4015.7,4015.3,0.3364]
[1758969384425,0.44798,4015.7,4015.5,3.2078]
[1758969385721,0.44798,4015.7,4015.5,3.5442]
[1758969386325,0.44798,4015.7,4015.6,0.276]
[1758969386527,0.77148,4015.7,4015.6,0.276]
[1758969386724,0.77148,4015.7,4015.5,3.2078]
[1758969386923,0.44798,4015.7,4015.5,3.2078]
[1758969387125,0.44798,4015.7,4015.6,0.276]
[1758969387326,0.44798,4015.7,4015.5,3.2078]
[1758969387530,3.2078,4016.2,4015.6,0.275]
[1758969387531,0.44794,4016.0,4015.6,0.275]
[1758969387729,0.44795,4015.9,4015.6,0.275]
[1758969387929,3.2078,4016.2,4015.7,0.3364]
[1758969388230,0.44795,4015.9,4015.6,0.275]
[1758969388426,3.2078,4016.2,4015.7,0.3364]
[1758969388628,0.44795,4015.9,4015.6,0.275]
[1758969388832,0.44795,4015.9,4015.7,0.3364]
[1758969389228,3.2078,4016.2,4015.6,0.275]
[1758969389433,0.3235,4017.2,4016.6,0.3364]
[1758969389729,0.77132,4017.1,4016.7,0.72286]
[1758969390035,0.00296177,4017.3,4017.2,0.3364]
[1758969390532,0.00296177,4017.3,4017.2,0.6124]
[1758969391030,0.00296177,4017.3,4017.2,0.3364]
[1758969391221,0.00296177,4017.3,4017.2,0.6124]
[1758969392028,0.00296177,4017.3,4017.2,5.6124]
[1758969392229,0.00296177,4017.3,4017.2,5.9410247]
[1758969392936,0.00296177,4017.3,4017.2,5.6124]
[1758969393136,3.2078,4018.5,4017.2,5.6124]
[1758969393333,0.44762,4018.9,4018.1,0.3364]
[1758969393528,0.44769,4018.2,4018.1,0.3364]
[1758969393840,0.77119,4018.2,4018.0,2.9838]
[1758969394030,0.77119,4018.2,4018.1,0.276]
[1758969394338,0.00290531,4018.2,4018.1,0.61517966]
[1758969394530,0.00290531,4018.2,4018.1,5.61517966]
[1758969394930,0.00290531,4018.2,4018.1,0.33917966]
[1758969395127,0.00290531,4018.2,4018.1,0.61517966]
[1758969395532,0.00290531,4018.2,4018.1,0.33917966]
[1758969395729,0.77409531,4018.2,4018.1,0.276]
[1758969396038,0.44772,4018.0,4017.7,3.2078]
[1758969396229,0.45060531,4018.2,4017.9,0.3364]
[1758969396429,0.44772,4018.0,4017.9,0.3364]
[1758969396737,0.00290531,4018.2,4017.7,3.86243921]
[1758969396738,0.44774,4017.8,4017.7,3.2078]
[1758969396936,0.44774,4017.8,4017.7,3.48636073]
[1758969397235,0.44774,4017.8,4017.7,3.54676073]
[1758969397436,0.44774,4017.8,4017.7,3.82276073]
[1758969397437,0.77124,4017.8,4017.7,3.82276073]
[1758969397634,0.44778,4017.4,4017.3,0.3364]
[1758969397838,0.3235,4017.3,4017.2,3.2078]
[1758969398244,0.3235,4017.3,4017.2,3.4838]
[1758969398539,0.3235,4017.3,4017.2,3.2078]
[1758969398737,0.3235,4017.3,4017.2,3.48669956]
[1758969398938,5.3235,4017.3,4016.5,3.3435]
[1758969399239,0.44786,4016.7,4016.6,0.275]
[1758969399444,0.44786,4016.7,4016.6,0.6114]
[1758969399642,0.44786,4016.7,4016.6,0.3364]
[1758969399840,0.44786,4016.7,4016.6,0.6114]
[1758969400140,0.44786,4016.7,4016.6,0.6134985]
[1758969400840,0.77136,4016.7,4016.6,0.2770985]
[1758969401039,0.77136,4016.7,4016.6,0.0020985]
[1758969401246,0.77136,4016.7,4016.5,3.2078]
[1758969401547,0.3235,4016.6,4016.5,3.2078]
[1758969402136,0.3235,4016.6,4016.5,3.48461715]
[1758969402331,0.3235,4016.6,4016.5,3.20961715]
[1758969402640,5.3235,4016.6,4016.5,0.00181715]
[1758969402844,0.3235,4016.6,4016.5,0.00181715]
[1758969403441,2.37092,4016.5,4015.9,3.2078]
[1758969403747,0.88474,4016.0,4015.9,3.2078]
[1758969403938,0.88474,4016.0,4015.9,3.4828]
[1758969404138,0.88474,4016.0,4015.9,3.2078]
[1758969404544,0.88474,4016.0,4015.9,2.98426138]
[1758969404746,0.88474,4016.0,4015.9,2.71026138]
[1758969405343,0.88474,4016.0,4015.9,0.00246138]
[1758969405744,0.7715,4015.4,4015.3,3.5442]
[1758969406149,0.7715,4015.4,4015.3,3.8182]
[1758969406447,0.7715,4015.4,4015.3,3.4818]
[1758969406745,0.7715,4015.4,4015.3,3.54734195]
[1758969406947,0.7715,4015.4,4015.3,2.71094195]
[1758969407138,5.7715,4015.4,4015.3,2.71094195]
[1758969407838,5.7715,4015.4,4015.3,3.04734195]
[1758969408037,5.448,4015.4,4015.3,3.04734195]
[1758969408239,0.44807,4014.8,4014.7,3.5442]
[1758969408440,0.44807,4014.8,4014.7,3.8182]
[1758969409142,0.45070878,4014.8,4014.7,3.54741407]
[1758969409439,0.44821,4013.6,4013.5,3.5428]
[1758969409640,3.65601,4013.6,4013.5,0.1993]
[1758969409842,3.97951,4013.6,4013.5,0.4733]
[1758969410050,3.97951,4013.6,4013.5,0.1993]
[1758969410242,3.97951,4013.6,4013.5,0.20246704]
[1758969412443,0.44826,4013.1,4013.0,0.6094]
[1758969412649,0.44826,4013.1,4012.5,3.3435]
[1758969412650,0.44831,4012.7,4012.6,0.3364]
[1758969412946,0.3094,4012.6,4012.5,3.2078]
[1758969413349,0.3094,4012.6,4012.5,3.21095834]
[1758969413653,3.5172,4012.6,4012.5,0.00315834]
[1758969414054,8.5172,4012.6,4012.5,0.00315834]
[1758969414255,8.7902,4012.6,4012.0,0.273]
[1758969414550,0.44839,4012.0,4011.8,3.2078]
[1758969414748,0.44841,4011.8,4011.6,0.3341]
[1758969414948,0.44842,4011.7,4011.6,0.3341]
[1758969415449,0.00196657,4011.7,4011.6,0.33590254]
[1758969417754,0.00196657,4011.7,4011.6,0.00180254]
[1758969417755,0.31136657,4011.7,4011.6,0.00180254]
[1758969419357,3.65612,4012.6,4011.6,5.00180254]
[1758969419652,0.44835,4012.3,4012.0,0.1314]
[1758969419956,0.3094,4012.7,4012.0,0.1314]
[1758969419957,3.2078,4012.1,4012.0,0.4034]
[1758969420156,3.2078,4012.1,4012.0,0.1314]
[1758969420454,3.65612,4012.6,4012.5,0.4655]
[1758969420650,3.65893002,4012.6,4012.5,0.3341]
[1758969420950,0.44837,4012.1,4012.0,0.272]
[1758969421253,0.44841,4011.8,4011.6,0.00180254]
[1758969421455,0.3094,4011.7,4011.6,0.00180254]
[1758969421658,0.3094,4011.7,4011.6,0.27380254]
[1758969421853,0.3094,4011.7,4011.6,0.00180254]
[1758969422750,0.75786,4011.3,4011.1,0.272]
[1758969422955,0.44852,4010.8,4010.7,3.5419]
[1758969423155,0.75792,4010.8,4010.7,3.4798]
[1758969423656,0.44852,4010.8,4010.7,3.81624108]
[1758969423851,0.75788,4011.2,4010.8,0.3341]
[1758969424254,0.44851,4010.9,4010.8,0.3341]
[1758969424559,0.44851,4010.9,4010.7,0.27434108]
[1758969424758,0.44851,4010.9,4010.7,0.00234108]
[1758969424759,0.75791,4010.9,4010.7,0.00234108]
[1758969425062,0.3094,4010.8,4010.7,0.00234108]
[1758969428559,0.5804,4010.8,4010.7,0.00234108]
[1758969429156,0.3304,4010.6,4010.1,2.71014108]
[1758969429355,0.77899,4010.2,4010.1,2.71014108]
[1758969429858,0.44864,4009.7,4009.6,3.2078]
[1758969430062,0.44864,4009.7,4009.6,3.547]
[1758969430253,0.45105797,4009.7,4009.6,3.54987344]
[1758969430855,0.78145797,4009.7,4009.6,3.54987344]
[1758969431057,0.00241797,4009.7,4009.6,3.54987344]
[1758969431361,0.45105797,4009.7,4009.6,3.54987344]
[1758969431959,0.78145797,4009.7,4009.6,3.48167344]
[1758969432163,0.78145797,4009.7,4009.6,3.21067344]
[1758969433159,0.33281797,4009.7,4009.6,0.00287344]
[1758969433361,0.78145797,4009.7,4009.6,0.00287344]
[1758969437063,0.77911,4009.1,4009.0,0.1995]
[1758969437351,0.77912,4009.0,4008.9,0.6092]
[1758969437556,0.77912,4009.0,4008.4,0.65463921]
[1758969437557,0.44876,4008.7,4008.4,0.65463921]
[1758969437763,0.3304,4008.7,4008.6,0.3392]
[1758969437956,0.3304,4008.7,4008.6,0.34207175]
[1758969438163,0.3304,4008.7,4008.6,0.00287175]
[1758969438467,0.77915,4008.7,4008.6,0.00287175]
[1758969441465,1.21595,4008.7,4008.6,0.00287175]
[1758969442560,0.44881,4008.2,4008.1,3.2078]
[1758969442762,1.20941,4008.2,4008.1,3.4212]
[1758969442962,0.7606,4008.2,4008.1,3.6472]
[1758969443359,1.20941,4008.2,4008.1,3.6472]
[1758969443767,1.20941,4008.2,4008.1,3.65017565]
[1758969444164,1.20941,4008.2,4008.1,3.42417565]
[1758969444367,1.20941,4008.2,4008.1,0.21637565]
[1758969444568,1.20941,4008.2,4008.1,0.00297565]
[1758969444759,1.20941,4008.2,4007.1,3.2078]
[1758969444760,0.4191,4007.8,4007.7,0.2104]
[1758969444964,0.206,4007.8,4007.7,0.7669]
[1758969445468,0.54,4007.8,4007.7,0.7669]
[1758969445673,0.54,4007.8,4007.7,0.76912337]
[1758969445865,0.7531,4007.8,4007.7,0.43862337]
[1758969446058,1.20195,4007.8,4007.7,0.43862337]
[1758969446262,1.20195,4007.8,4007.7,0.00222337]
[1758969448465,3.2078,4008.2,4007.7,0.76912337]
[1758969448669,3.2078,4008.2,4008.1,0.7669]
[1758969449267,3.4138,4008.2,4008.1,1.21572]
[1758969449675,3.4138,4008.2,4008.1,0.7669]
[1758969450074,3.7478,4008.2,4008.1,0.7669]
[1758969450571,3.9609,4008.2,4008.1,0.2104]
[1758969450772,0.54,4007.8,4007.7,0.99198337]
[1758969450962,0.7531,4007.8,4007.7,1.48598337]
[1758969451166,0.54,4007.8,4007.7,1.48598337]
[1758969452576,0.7531,4007.8,4007.7,0.00222337]
[1758969452871,0.7531,4007.8,4007.5,0.65463921]
[1758969452872,0.334,4007.7,4007.6,0.2104]
[1758969453077,0.4191,4007.7,4007.6,0.88528]
[1758969453377,0.206,4007.7,4007.6,1.21578]
[1758969453575,0.334,4008.0,4007.9,1.21574]
[1758969453769,3.2078,4008.2,4008.1,1.21572]
[1758969454174,3.2078,4008.9,4008.8,0.44874]
[1758969454472,3.7478,4008.9,4008.6,0.44876]
[1758969454775,4.40963,4008.9,4008.8,0.1463]
[1758969455177,0.206,4008.6,4008.5,0.86307]
[1758969455377,0.54,4008.6,4008.5,0.86307]
[1758969455969,0.7531,4008.6,4008.5,0.1463]
[1758969456677,0.7531,4008.6,4008.5,0.59508]
[1758969456879,0.7531,4008.6,4008.5,0.1463]
[1758969457173,0.7531,4008.8,4008.7,0.2926]
[1758969457371,0.7531,4008.8,4008.5,0.44877]
[1758969457574,0.7531,4008.8,4008.7,0.1463]
[1758969457774,0.1347,4008.5,4008.4,1.10341921]
[1758969457972,0.6747,4008.5,4008.4,1.51671921]
[1758969458377,0.6747,4008.5,4008.4,0.86208]
[1758969458580,0.6747,4008.5,4008.4,1.52799925]
[1758969458876,0.6747,4008.5,4008.4,1.67429925]
[1758969459279,0.8878,4008.5,4008.4,0.2926]
[1758969459477,0.8878,4008.5,4008.4,1.22590179]
[1758969460175,0.8878,4008.5,4008.4,1.67469179]
[1758969460566,0.8878,4008.5,4008.4,1.40769179]
[1758969460768,0.8878,4008.5,4008.4,1.67469179]
[1758969460980,0.8878,4008.5,4008.4,0.95890179]
[1758969461179,0.8878,4008.5,4008.4,1.22590179]
[1758969461680,0.78862817,4008.5,4008.4,1.52839179]
[1758969462281,0.78862817,4008.5,4008.4,0.86209]
[1758969462585,0.78862817,4008.5,4008.4,1.75517885]
[1758969463279,0.78862817,4008.5,4008.4,1.08809]
[1758969464676,1.12177,4009.2,4008.4,1.08809]
[1758969464677,3.2078,4009.9,4009.6,1.21555]
[1758969464885,0.4486,4010.1,4009.6,0.7034]
[1758969465181,3.2078,4010.4,4009.6,1.0339]
[1758969465485,3.65637,4010.4,4009.6,1.9228173]
[1758969465778,3.2078,4010.4,4009.6,1.9228173]
[1758969465974,3.2078,4010.4,4009.6,1.0339]
[1758969466374,3.65637,4010.4,4009.6,1.0339]
[1758969466575,3.2078,4010.4,4009.6,1.0339]
[1758969466777,3.5418,4010.4,4009.6,2.35686677]
[1758969466975,0.334,4010.8,4010.7,0.44853]
[1758969467173,3.2078,4010.9,4010.8,0.7669]
[1758969467487,3.2078,4010.9,4010.8,1.43328303]
[1758969467986,3.96360798,4010.9,4010.8,0.00299949]
[1758969468186,3.96360798,4010.9,4010.8,0.37069949]
[1758969468682,3.96360798,4010.9,4010.8,0.00299949]
[1758969468881,3.96360798,4010.9,4010.8,0.267]
[1758969469178,0.7531,4010.6,4010.5,0.267]
[1758969469378,0.1347,4010.5,4010.1,4.32277303]
[1758969469580,0.8878,4010.5,4010.4,0.267]
[1758969469880,0.8878,4010.5,4010.4,0.00280357]
[1758969470085,0.8878,4010.5,4010.4,0.26980357]
[1758969470785,0.8878,4010.5,4010.3,0.267]
[1758969471476,0.5538,4010.5,4010.3,0.71557]
[1758969471677,0.7531,4010.4,4010.3,0.44857]
[1758969471878,0.7531,4010.4,4010.3,0.45051732]
[1758969472475,0.7531,4010.4,4010.3,0.00194732]
[1758969475478,0.7531,4010.4,4010.3,0.20314732]
[1758969475479,0.54,4010.4,4010.3,0.20314732]
[1758969475677,0.54,4010.4,4010.3,0.44857]
[1758969475678,0.3243,4010.4,4010.3,0.44857]
[1758969475877,0.5426,4010.4,4010.3,0.266]
[1758969476580,0.5426,4010.4,4010.3,0.26795544]
[1758969476979,0.7542,4010.4,4010.3,0.26795544]
[1758969477384,0.7542,4010.4,4010.3,0.71652544]
[1758969480793,3.962,4010.4,4010.3,0.71652544]
[1758969481678,3.962,4010.4,4010.3,0.00195544]
[1758969481986,0.3243,4009.9,4009.8,0.64813]
[1758969482290,3.4261,4010.4,4010.3,0.87667]
[1758969482482,0.2183,4010.4,4010.3,1.14267]
[1758969482881,0.2183,4010.4,4010.3,1.32247695]
[1758969483183,0.2183,4010.4,4010.3,1.14447695]
[1758969483391,0.4299,4010.4,4010.3,1.14447695]
[1758969484186,0.7542,4010.4,4010.3,1.14447695]
[1758969486486,0.7542,4010.4,4010.3,0.92607695]
[1758969486686,3.962,4010.4,4010.3,0.71637695]
[1758969486887,3.962,4010.4,4010.3,0.21637695]
[1758969487392,3.962,4010.4,4010.3,0.45037695]
[1758969487699,3.962,4010.4,4010.3,0.71537695]
[1758969488602,3.962,4010.4,4010.3,0.26680695]
[1758969488796,4.41056,4010.4,4010.3,0.26680695]
[1758969488987,0.44858,4010.3,4010.0,0.44861]
[1758969489187,0.7648,4010.1,4010.0,0.44861]
[1758969489390,0.7648,4010.1,4010.0,0.66638303]
[1758969489697,0.7648,4010.1,4010.0,0.71361]
[1758969489893,0.7648,4010.1,4010.0,0.44861]
[1758969490098,0.7648,4010.1,4010.0,0.71620721]
[1758969491003,0.7648,4010.1,4010.0,0.265]
[1758969491205,0.7648,4010.1,4010.0,0.93138303]
[1758969491505,0.7648,4010.1,4010.0,1.37999303]
[1758969491898,0.7648,4010.1,4010.0,1.38239225]
[1758969492202,0.75283242,4010.1,4010.0,0.71600922]
[1758969493201,0.75283242,4010.1,4010.0,1.60451993]
[1758969493996,0.75283242,4010.1,4010.0,1.15590993]
[1758969494196,0.75283242,4010.1,4010.0,1.60016529]
[1758969494398,0.75283242,4010.1,4010.0,2.04877529]
[1758969494909,0.75283242,4010.1,4010.0,0.71600922]
[1758969495309,0.75283242,4010.1,4010.0,2.04877529]
[1758969496007,0.75283242,4010.1,4010.0,0.92960922]
[1758969496211,0.75283242,4010.1,4010.0,2.26237529]
[1758969496514,0.75283242,4010.1,4010.0,2.22307529]
[1758969496809,0.75283242,4010.1,4010.0,2.48707529]
[1758969497707,1.20143242,4010.1,4010.0,2.03846529]
[1758969497908,1.20143242,4010.1,4010.0,1.77446529]
[1758969498108,1.20143242,4010.1,4010.0,0.70569922]
[1758969498410,0.75283242,4010.1,4010.0,0.92860922]
[1758969498708,1.88472413,4010.1,4010.0,0.92860922]
[1758969499107,3.37396171,4011.8,4010.0,0.92860922]
[1758969499108,0.538,4010.7,4010.6,1.20604]
[1758969499410,3.52670798,4010.9,4010.8,1.20602]
[1758969499611,3.21050798,4010.9,4010.8,1.20602]
[1758969500099,0.00270798,4010.9,4010.8,1.20602]
[1758969500609,0.00270798,4010.9,4010.8,6.20602]
[1758969501004,3.2078,4011.4,4011.3,1.20596]
[1758969501204,0.3162,4012.2,4012.1,0.7575]
[1758969501205,0.538,4012.2,4012.1,0.7575]
[1758969501510,0.538,4012.2,4012.1,1.0215]
[1758969502214,0.00269648,4012.2,4012.1,1.0215]
[1758969502901,0.00269648,4012.2,4012.1,1.68714517]
[1758969503709,0.22449648,4012.2,4012.1,1.68714517]
[1758969503908,0.22449648,4012.2,4012.1,0.264]
[1758969503909,0.43489648,4012.2,4012.1,0.264]
[1758969504106,0.77579648,4012.2,4012.1,0.264]
[1758969504411,0.77579648,4012.2,4012.1,0.4737]
[1758969504604,0.43489648,4012.2,4011.9,0.66564517]
[1758969504810,0.5529,4012.0,4011.9,0.2097]
[1758969505107,0.5529,4012.0,4011.9,0.4737]
[1758969505412,0.8938,4012.0,4011.9,0.4737]
[1758969505609,0.4638,4012.0,4011.9,0.68]
[1758969505804,0.00269648,4012.2,4012.1,0.416]
[1758969506108,0.00269648,4012.2,4012.1,1.22644517]
[1758969506320,0.00269648,4012.2,4012.1,6.22644517]
[1758969507507,0.3409,4013.2,4013.1,0.44826]
[1758969507712,0.5605,4013.2,4013.1,1.12826]
[1758969508309,0.1337,4013.5,4013.4,0.44823]
[1758969508512,0.13659006,4013.5,4013.4,1.27526932]
[1758969508818,0.35619006,4013.5,4013.4,4.33826932]
[1758969509008,0.69709006,4013.5,4013.4,4.33826932]
[1758969509613,0.90749006,4013.5,4013.4,2.71003932]
[1758969509915,0.90749006,4013.5,4012.6,2.1502305]
[1758969509916,0.8938,4013.0,4012.9,0.65798]
[1758969510219,0.8938,4013.0,4012.9,0.92198]
[1758969510715,0.8938,4013.0,4012.9,0.92471748]
[1758969511104,0.8938,4013.0,4012.9,1.13101748]
[1758969511620,0.6834,4013.0,4012.9,1.13101748]
[1758969511822,0.8938,4013.0,4012.9,0.21243748]
[1758969512016,0.8938,4013.0,4012.9,0.71501748]
[1758969513510,0.8938,4013.0,4012.9,0.71401748]
[1758969513819,0.8938,4013.0,4012.9,0.92371748]
[1758969516124,0.8938,4013.0,4012.9,0.26573748]
[1758969516423,0.3409,4012.9,4012.7,3.2078]
[1758969516624,0.7709,4012.9,4012.8,0.263]
[1758969517017,0.3409,4012.8,4012.7,3.6561]
[1758969517225,0.7709,4012.8,4012.7,3.8658]
[1758969517521,0.7709,4012.8,4012.7,4.13114836]
[1758969518615,0.7709,4012.8,4012.7,3.68284836]
[1758969518822,0.7709,4012.8,4012.7,4.13115836]
[1758969519420,1.2192,4012.8,4012.7,3.68284836]
[1758969519619,1.2192,4012.8,4012.7,3.18284836]
[1758969519817,0.7709,4012.8,4012.7,3.63115836]
[1758969520825,1.2192,4012.8,4012.7,3.18284836]
[1758969521023,0.7709,4012.8,4012.7,3.63115836]
[1758969521318,0.7709,4012.8,4012.7,2.91984836]
[1758969521624,1.2192,4012.8,4012.7,3.18284836]
[1758969522210,1.2192,4012.8,4012.7,2.91984836]
[1758969522417,1.2192,4012.8,4012.7,3.18284836]
[1758969522622,1.2192,4012.8,4012.7,2.71014836]
[1758969523023,1.2192,4012.8,4012.7,2.97214836]
[1758969523225,1.2192,4012.8,4012.7,0.26434836]
[1758969523412,0.00289006,4013.5,4013.4,1.00903]
[1758969523617,0.00289006,4013.5,4013.4,1.27103]
[1758969523813,3.2078,4014.1,4014.0,0.65786]
[1758969524014,0.3409,4014.4,4014.0,0.416]
[1758969524213,0.43,4014.4,4014.3,0.2097]
[1758969524421,0.7709,4014.4,4014.3,0.4737]
[1758969524820,0.77351306,4014.4,4014.3,0.4737]
[1758969525316,0.77351306,4014.4,4014.3,0.68]
[1758969525627,0.00261306,4014.4,4014.3,0.8248]
[1758969527532,0.00261306,4014.4,4014.3,5.8248]
[1758969528121,3.5487,4015.2,4015.1,0.416]
[1758969528423,3.2078,4015.2,4015.1,0.8222]
[1758969528627,0.1229,4016.0,4015.1,1.12804]
[1758969528628,3.2078,4015.8,4015.1,1.12804]
[1758969528823,0.3409,4015.4,4015.1,0.8222]
[1758969529024,0.2196,4015.2,4015.1,0.68]
[1758969529223,0.5605,4015.2,4015.1,0.68]
[1758969529616,0.00219715,4015.4,4014.6,1.07823652]
[1758969529617,0.5605,4014.7,4014.6,1.07823652]
[1758969529926,0.5605,4014.7,4014.6,1.34223652]
[1758969530122,0.5605,4014.7,4014.6,1.07823652]
[1758969530323,0.5605,4014.7,4014.6,1.34223652]
[1758969530716,0.5605,4014.7,4014.6,1.07823652]
[1758969530918,0.3409,4014.9,4014.8,0.5582]
[1758969531118,0.1229,4015.0,4014.8,1.00626]
[1758969531323,0.4638,4015.0,4014.9,0.8222]
[1758969531826,0.00219715,4015.4,4015.3,0.416]
[1758969531827,0.22179715,4015.4,4015.3,0.416]
[1758969532029,0.56269715,4015.4,4015.3,0.68]
[1758969532528,0.77309715,4015.4,4015.3,0.68]
[1758969532720,0.56269715,4015.4,4015.3,0.68]
[1758969532919,0.34309715,4015.4,4015.3,0.8218]
[1758969533319,0.00219715,4015.4,4015.3,0.8218]
[1758969533523,0.00219715,4015.4,4015.3,5.8218]